Cogmind - Beta 10.2 *** ADVENTURER MODE // 2021.08.17 @ 23:10:48 Player: Jezoensis Result: Destroyed by H-88 Terminator with KE Penetrator Performance ------------- Evolutions (8) 4000 Regions Visited (9) 1800 Robots Destroyed (232) 1160 Value Destroyed (9602) 9602 Prototype IDs (16) 320 Alien Tech Used (0) 0 Bonus (255) 255 TOTAL SCORE: 17137 Bonus ------- High Alert Combat Kills 255 Cogmind --------- Core Integrity 0/1450 Matter 92/300 Energy 170/170 System Corruption 22% Temperature Cool (209) Movement Rolling (110) Ox1 Location -2/Research Parts ------- > --- POWER (2) -------- Micro Fission Core > --- PROPULSION (5) --- Compact Wheel Armored Huge Wheel > --- UTILITY (13) ----- Large Storage Unit Large Storage Unit High-capacity Storage Unit Enhanced Optical Array Advanced Signal Interpreter > --- WEAPON (3) ------- (None) > --- INVENTORY (24) --- Micro Fission Core Coolant Network Advanced Coolant Injector High-capacity Storage Unit Improved Sensor Array Gamma Rifle Enhanced Nova Cannon Enhanced Nova Cannon Enhanced Nova Cannon Ionic Axe Lance Peak State ------------ > --- POWER ------------ Micro Fission Core Micro Fission Core > --- PROPULSION ------- Advanced Heavy Treads Wheel Armored Huge Wheel > --- UTILITY ---------- Experimental Power Amplifier Advanced Coolant Injector Large Storage Unit Large Storage Unit Large Storage Unit Large Storage Unit Structural Scanner Advanced Sensor Array Advanced Signal Interpreter Advanced Particle Charger Advanced Hardlight Generator Improved System Shield Experimental System Shield > --- WEAPON ----------- Quantum Rifle Quantum Rifle Railgun > --- INVENTORY -------- Micro Fission Core Micro Fission Core Micro Fission Core Biometal Heavy Treads Wheel Compact Wheel Armored Huge Wheel Armored Huge Wheel Coolant Network Advanced Coolant Injector Large Storage Unit High-capacity Storage Unit High-capacity Storage Unit Improved Sensor Array Improved Sensor Array Weapon Cycler Improved Force Field Nova Cannon Linear Accelerator Ionic Axe Lance [Rating: 126] Favorites ----------- Power Micro Fission Core Engine Heavy Ion Engine Power Core Micro Fission Core Reactor Cold Fusion Reactor Propulsion Armored Wheel Treads Armored Treads Leg Carbon-fiber Leg Wheel Armored Wheel Utility Large Storage Unit Device Advanced Sensor Array Storage Large Storage Unit Processor Advanced Signal Interpreter Hackware Improved System Shield Protection Improved Medium Armor Plating Weapon Quantum Rifle Energy Gun Quantum Rifle Energy Cannon Advanced Plasma Cannon Ballistic Gun Railgun Ballistic Cannon Linear Accelerator Launcher Mini Grenade Launcher Impact Weapon Maul Slashing Weapon Ionic Axe Build | -11 -10 -9 -8 -7 -6 -5 -4 -3 -2 ------- Run | Scr Mat Mat Mat Fac Fac Fac Fac Res Res Slots Evolved 16 | . . 2 2 2 2 2 2 2 2 Power 1 | . . . . . . . 1 . . Propulsion 3 | . . 1 . . 1 . . 1 . Utility 11 | . . 1 2 2 1 1 1 1 2 Weapon 1 | . . . . . . 1 . . . Parts Attached 298 | 6 6 25 12 27 19 17 24 128 34 Power 26 | 1 1 3 . 1 4 1 2 9 4 Engine 6 | 1 1 3 . . 1 . . . . Core 19 | . . . . 1 2 1 2 9 4 Reactor 1 | . . . . . 1 . . . . Propulsion 68 | 2 . 6 2 6 7 7 7 21 10 Treads 19 | . . 3 1 2 4 1 3 4 1 Leg 1 | . . . . . 1 . . . . Wheel 48 | 2 . 3 1 4 2 6 4 17 9 Hover . | . . . . . . . . . . Flight . | . . . . . . . . . . Utility 95 | 1 4 4 4 10 3 4 8 47 10 Device 65 | . . 1 1 2 3 2 7 42 7 Storage 12 | 1 1 1 1 3 . 1 . 2 2 Processor 6 | . 2 1 . 2 . . . . 1 Hackware 2 | . . . . . . . . 2 . Protection 10 | . 1 1 2 3 . 1 1 1 . Artifact . | . . . . . . . . . . Weapon 109 | 2 1 12 6 10 5 5 7 51 10 Energy Gun 39 | 1 . 3 3 5 2 3 3 15 4 Energy Cannon 11 | . . 1 . 4 . . 1 4 1 Ballistic Gun 34 | 1 1 4 . 1 2 2 3 16 4 Ballistic Cannon 1 | . . . . . . . . . 1 Launcher 11 | . . 3 3 . . . . 5 . Special Weapon . | . . . . . . . . . . Impact Weapon 1 | . . 1 . . . . . . . Slashing Weapon 12 | . . . . . 1 . . 11 . Piercing Weapon . | . . . . . . . . . . Special Melee Weapon . | . . . . . . . . . . Unidentified Prototypes 16 | . . 1 . 2 1 1 . 10 1 Parts Lost 80 | . 2 1 . 1 2 2 4 34 34 Power 7 | . 1 . . . 1 . . 1 4 Propulsion 21 | . . 1 . . . . . 10 10 Utility 24 | . . . . . . 1 1 10 12 Weapon 28 | . 1 . . 1 1 1 3 13 8 Highest Loss Streak 18 | . 1 1 . 1 1 1 4 9 18 Average Slot Usage (%) 93 | . 93 97 100 99 97 99 99 90 73 Engine 2 | . 13 11 9 2 . . . . . Core 6 | . . . . 4 5 5 10 8 7 Treads 5 | . . 11 9 6 9 8 4 3 2 Wheel 14 | . 28 21 18 15 13 14 15 13 6 Device 12 | . . 1 9 12 13 14 15 14 15 Storage 18 | . 13 18 18 16 20 20 21 19 16 Processor 8 | . 2 1 9 15 13 11 10 8 4 Hackware 1 | . . . . . . . . 3 6 Protection 4 | . 6 9 9 7 6 4 5 1 . Energy Gun 7 | . 8 3 6 7 8 11 8 5 4 Ballistic Gun 6 | . 19 17 9 5 4 5 5 5 3 Naked Turns . | . . . . . . . . . . Heaviest Build 134 | 11 24 49 70 70 76 92 104 134 106 Greatest Support 75 | 26 26 26 24 36 36 36 38 75 75 Greatest Overweight (x) 6 | . . 3 3 2 5 3 5 6 3 Average Overweight (x) 1 | . . . 2 1 2 2 2 1 1 Largest Inventory Capacity 30 | 6 10 16 18 22 22 28 28 30 28 Average Capacity 23 | 5 9 13 16 17 22 25 28 29 27 Most Carried 30 | 4 7 16 18 22 22 28 28 30 26 Average Carried 22 | 2 5 11 16 16 21 23 27 27 21 Final Capacity 28 | 6 10 16 18 22 22 28 28 28 24 Final Carried 28 | 4 7 16 18 22 22 28 28 25 12 Class Distribution -------------------- 42% | Hauler-Skirmisher 14% | Scavenger-Skirmisher 14% | Mutant 6% | Skirmisher 5% | Hacker-Skirmisher 4% | Hauler-Mutant Dominant Class ---------------- Mutant | -10/Materials Mutant | -9/Materials Mutant | -8/Materials Skirmisher | -7/Factory Hauler-Skirmisher | -6/Factory Hauler-Skirmisher | -5/Factory Hauler-Skirmisher | -4/Factory Hauler-Skirmisher | -3/Research Hacker-Skirmisher | -2/Research Resources | -11 -10 -9 -8 -7 -6 -5 -4 -3 -2 ----------- Run | Scr Mat Mat Mat Fac Fac Fac Fac Res Res Matter Collected 5552 | 249 121 530 172 675 265 398 450 2216 476 Remotely . | . . . . . . . . . . Salvage Created 11533 | 62 285 1010 526 1171 399 1477 1223 4372 1008 Parts 629 | . 26 79 31 60 17 72 64 219 61 Haulers Intercepted 8 | . 1 6 . 1 . . . . . Recyclers Shooed 11 | . . 1 2 . . 1 1 5 1 Parts Field Recycled . | . . . . . . . . . . Retrieved Matter . | . . . . . . . . . . Parts Self-Destructed . | . . . . . . . . . . Prevented . | . . . . . . . . . . Kills | -11 -10 -9 -8 -7 -6 -5 -4 -3 -2 ------- Run | Scr Mat Mat Mat Fac Fac Fac Fac Res Res Combat Hostiles Destroyed 165 | . 9 18 14 14 7 17 14 57 15 Guns 129 | . 8 12 5 11 7 14 14 47 11 Cannons 14 | . . . . 2 . . . 9 3 AOE 16 | . 1 6 9 . . . . . . Classes Destroyed 16 | 1 4 2 2 2 . 1 1 3 . Worker 14 | . . . 1 2 . 1 3 6 1 Builder 14 | . . 3 3 . . 4 . 2 2 Tunneler 1 | . . . . 1 . . . . . Hauler 8 | . 1 6 . 1 . . . . . Recycler 13 | 1 . 1 1 3 . 2 3 2 . Operator 1 | . . . . . . . 1 . . Watcher 25 | . 1 3 1 3 2 1 6 7 1 Swarmer 37 | . 6 7 4 3 3 . 9 . 5 Grunt 47 | . 3 8 7 4 3 8 . 12 2 Brawler 1 | . . . . . . 1 . . . Duelist 1 | . . . . . . . . 1 . Sentry 19 | . . 3 2 3 1 1 1 7 1 Demolisher 2 | . . . . . . . . 2 . Hunter 11 | . . . 1 1 . 4 2 2 1 Programmer 38 | . . . . 3 . 3 2 24 6 Assembled 9 | . . . . . . . . 9 . Best Kill Streak 11 | 1 4 8 10 5 4 10 8 11 11 Combat Bots Only 11 | . 4 5 6 3 3 7 7 11 11 Max Kills in Single Turn 5 | 1 1 5 5 2 1 2 4 2 2 Gunslinging 1 | . . . . . . . 1 1 1 Exploded 3 | . 1 3 2 . . . . . . Melee . | . . . . . . . . . . Uniques/NPCs Destroyed . | . . . . . . . . . . Combat | -11 -10 -9 -8 -7 -6 -5 -4 -3 -2 -------- Run | Scr Mat Mat Mat Fac Fac Fac Fac Res Res Damage Taken 19375 | . 201 400 458 855 620 950 1204 7976 6711 Core 2570 | . 38 66 20 106 38 76 124 641 1461 Absorbed by Shields 39 | . . . . . . . . . 39 Reduced by Siege Mode 746 | . . . . . . . . 530 216 Core Remaining (%) 85 | 100 84 83 96 84 95 92 89 50 . Volleys Fired 588 | 4 29 60 28 78 29 72 59 186 43 Largest 3 | 2 2 2 2 2 2 3 3 3 3 Hottest 301 | 60 60 79 68 96 120 133 204 286 301 Shots Fired 1395 | 8 58 119 50 150 55 190 153 503 109 Gun 1257 | 8 58 113 44 126 55 190 151 426 86 Cannon 121 | . . 3 . 24 . . 2 69 23 Launcher 17 | . . 3 6 . . . . 8 . Special . | . . . . . . . . . . Kinetic 622 | 4 30 96 22 58 21 61 58 212 60 Thermal 646 | . . . . 56 34 129 95 283 49 Explosive 9 | . . 3 6 . . . . . . Electromagnetic 118 | 4 28 20 22 36 . . . 8 . Robot Hit Streak 51 | 6 9 21 23 20 21 31 19 51 35 Robot Miss Streak 4 | 1 2 3 3 4 2 2 2 2 3 Penetration Max 2 | . . . . . 1 1 2 1 1 Secondary Targets 25 | . 2 1 . 1 2 3 4 8 4 Max Gunslinging Chain 1 | . 1 1 . 1 1 1 1 1 1 Shots Hit Robots 1096 | 7 41 95 41 117 45 151 114 401 84 Core Hits 464 | 1 15 42 32 43 17 56 48 176 34 Critical Hits 20 | . . . . 4 . 3 7 4 2 Critical Kills 4 | . . . . 1 . . 2 . 1 Critical Parts Destroyed 15 | . . . . 3 . 3 5 3 1 Melee Attacks 11 | . . . . . . . . 11 . Impact . | . . . . . . . . . . Slashing 11 | . . . . . . . . 11 . Piercing . | . . . . . . . . . . Sneak Attacks . | . . . . . . . . . . Combat Hostiles . | . . . . . . . . . . Follow-up Attacks . | . . . . . . . . . . Damage Inflicted 29492 | 111 607 1828 1968 2032 906 3548 3046 12720 2726 Guns 23516 | 72 507 1264 567 1546 906 3548 2827 10206 2073 Cannons 3126 | . . 70 . 486 . . 64 1908 598 Explosions 2716 | 39 100 494 1401 . . . 155 527 . Melee . | . . . . . . . . . . Ramming 134 | . . . . . . . . 79 55 Kinetic 11142 | 22 185 955 247 625 411 1384 1547 4714 1052 Thermal 14161 | 39 100 76 . 924 495 2164 1344 7400 1619 Explosive 1974 | . . 418 1401 . . . 155 . . Electromagnetic 2081 | 50 322 379 320 483 . . . 527 . Impact . | . . . . . . . . . . Slashing . | . . . . . . . . . . Piercing . | . . . . . . . . . . Highest Corruption 30 | . . . . 3 . 1 4 30 22 Average Corruption 8 | . . . . 2 . 1 3 10 8 Corruption Purged . | . . . . . . . . . . Effects 202 | . . . . 13 . 4 20 150 15 Message Errors 25 | . . . . 4 . . . 20 1 Matter Fused 31 | . . . . 3 . . 6 20 2 Heat Flow Errors 18 | . . . . . . . 1 15 2 Energy Discharges 13 | . . . . 1 . . 1 8 3 Parts Rejected 4 | . . . . . . . 2 2 . Data Loss (minor) 13 | . . . . . . . 2 11 . Data Loss (major) 5 | . . . . . . . . 4 1 Misfires 2 | . . . . . . . . 2 . Misdirections 17 | . . . . . . . . 15 2 Targeting Errors 57 | . . . . 3 . 2 7 42 3 Weapon Failures 17 | . . . . 2 . 2 1 11 1 Overload Shots 8 | . . . . 2 5 1 . . . Effects 2 | . . . . 1 1 . . . . Energy Bleed 1 | . . . . 1 . . . . . Meltdown 1 | . . . . . 1 . . . . Overflow Damage 265 | . . 9 125 6 . . . 51 74 Projectiles 131 | . . . . 6 . . . 51 74 Explosions 134 | . . 9 125 . . . . . . Melee . | . . . . . . . . . . Knockbacks 2 | . . . . . . . . 1 1 Impact 1 | . . . . . . . . 1 . Kinetic 1 | . . . . . . . . . 1 Secondary . | . . . . . . . . . . Self-Inflicted Damage 151 | . . 18 52 . . . . 54 27 Shots 13 | . . 1 2 . . . . 10 . Rammed 13 | . . . . . . . . 9 4 Targets Rammed 13 | . . . . . . . . 9 4 Kicked . | . . . . . . . . . . Crushed . | . . . . . . . . . . Highest Temperature 364 | . 18 70 168 229 36 364 148 289 246 Average Temperature 68 | . 11 20 53 42 13 76 34 93 105 Received Heat Transfer 3155 | . 30 171 171 288 177 207 27 1778 306 Siege Activations 28 | . . . . . . . . 25 3 Total Turns 391 | . . . . . . . . 327 64 Longest Duration 57 | . . . . . . . . 57 25 Robots Corrupted 2 | . . . . 1 . . . 1 . Combat Hostiles 2 | . . . . 1 . . . 1 . Parts Fried 8 | . . 4 2 2 . . . . . Impact Corruptions . | . . . . . . . . . . Robots Melted 4 | . . . . . . 3 . . 1 Combat Hostiles 4 | . . . . . . 3 . . 1 Parts Melted 51 | . . . . 4 2 8 4 30 3 Heat Transferred 19797 | 50 100 100 . 1665 962 3996 2172 9309 1443 Parts Sabotaged . | . . . . . . . . . . Parts Stolen . | . . . . . . . . . . Parts Stripped . | . . . . . . . . . . Power Chain Reactions 4 | 1 2 1 . . . . . . . Missiles Intercepted . | . . . . . . . . . . Alert | -11 -10 -9 -8 -7 -6 -5 -4 -3 -2 ------- Run | Scr Mat Mat Mat Fac Fac Fac Fac Res Res Peak Influence 669 | 5 291 570 595 460 338 344 669 483 404 Initial 303 | . 2 104 205 199 169 121 144 303 137 Average 258 | 1 161 380 386 307 229 177 363 235 201 Maximum Alert Level 2 | . 1 2 2 2 1 1 2 2 2 Low Security (%) 34 | 100 51 20 . 17 34 64 14 33 62 Level 1 54 | . 48 27 36 73 65 35 56 64 36 Level 2 10 | . . 51 63 8 . . 29 1 . Level 3 . | . . . . . . . . . . Level 4 . | . . . . . . . . . . Level 5 . | . . . . . . . . . . High Security . | . . . . . . . . . . Max Security . | . . . . . . . . . . Squads Dispatched 37 | . 2 2 2 4 6 3 1 12 5 Investigation 5 | . 2 1 . . 1 1 . . . Extermination 13 | . . . . 2 . 1 1 8 1 Reinforcement 13 | . . 1 2 2 4 1 . 2 1 Assault 1 | . . . . . . . . 1 . Garrison 5 | . . . . . 1 . . 1 3 Intercept . | . . . . . . . . . . Construction Impeded 4 | . . 1 1 . . . . 1 1 Haulers Reinforced 2 | . . . . 1 . 1 . . . Stealth | -11 -10 -9 -8 -7 -6 -5 -4 -3 -2 --------- Run | Scr Mat Mat Mat Fac Fac Fac Fac Res Res Distress Signals 17 | . . 2 2 1 1 1 1 6 3 Communications Jammed 57 | . . . . . . . 1 56 . Distress Signals 56 | . . . . . . . . 56 . Times Spotted 281 | . 14 23 17 20 18 23 27 105 34 Peak Tracking Total 12 | . 4 5 4 3 4 4 7 7 12 Tactical Retreats 16 | . . 2 . . 1 2 1 8 2 Traps | -11 -10 -9 -8 -7 -6 -5 -4 -3 -2 ------- Run | Scr Mat Mat Mat Fac Fac Fac Fac Res Res Traps Triggered 10 | . . 1 . . . . . 6 3 Indirectly . | . . . . . . . . . . Trap Hack Attempts . | . . . . . . . . . . Triggered . | . . . . . . . . . . Disarmed . | . . . . . . . . . . Reprogrammed . | . . . . . . . . . . Reused . | . . . . . . . . . . Traps Extracted . | . . . . . . . . . . Installed . | . . . . . . . . . . Triggered . | . . . . . . . . . . Machines | -11 -10 -9 -8 -7 -6 -5 -4 -3 -2 ---------- Run | Scr Mat Mat Mat Fac Fac Fac Fac Res Res Machines Disabled 21 | . 1 1 2 . 2 4 8 2 1 Max in Single Turn 6 | . 1 1 2 . 1 2 6 1 1 Garrison Access 1 | . . . . . . . . 1 . Machines Sabotaged . | . . . . . . . . . . Garrisons Compromised . | . . . . . . . . . . Overloaded Fab Kills . | . . . . . . . . . . Fab Network Shutdowns . | . . . . . . . . . . Hacking | -11 -10 -9 -8 -7 -6 -5 -4 -3 -2 --------- Run | Scr Mat Mat Mat Fac Fac Fac Fac Res Res Machines Accessed 40 | . 3 6 4 5 5 6 1 7 3 Terminals 31 | . 3 5 4 3 4 3 1 6 2 Fabricators 5 | . . . . 1 . 3 . . 1 Repair Stations . | . . . . . . . . . . Recycling Units . | . . . . . . . . . . Scanalyzers 2 | . . 1 . 1 . . . . . Garrison Access 2 | . . . . . 1 . . 1 . Total Hacks 122 | . 12 21 13 15 13 16 3 20 9 Successful 60 | . 6 12 7 10 5 6 2 10 2 Failed 61 | . 6 9 5 5 8 10 1 10 7 Catastrophic 8 | . 1 1 . 1 2 1 . . 2 Database Lockouts 1 | . . . 1 . . . . . . Manual 84 | . 11 16 9 9 11 10 3 10 5 Terminals 103 | . 12 19 13 10 12 10 3 19 5 Fabricators 12 | . . . . 2 . 6 . . 4 Repair Stations . | . . . . . . . . . . Recycling Units . | . . . . . . . . . . Scanalyzers 5 | . . 2 . 3 . . . . . Garrison Access 2 | . . . . . 1 . . 1 . Terminal Hacks 26 | . 3 6 4 4 2 1 . 5 1 Part Schematic 4 | . . 1 2 . . . . 1 . Robot Analysis 4 | . . 2 . 2 . . . . . Level Access Points 4 | . . 1 . 1 1 . . . 1 Branch Access Points 1 | . . . 1 . . . . . . Terminal Index 7 | . 1 1 1 1 1 1 . 1 . Fabricator Index 1 | . . . . . . . . 1 . Alert Level 1 | . . . . . . . . 1 . Unreport Threat 1 | . . . . . . . . 1 . Locate Traps 1 | . 1 . . . . . . . . Recall Investigation 1 | . 1 . . . . . . . . Hauler Manifests 1 | . . 1 . . . . . . . Fabricator Hacks 7 | . . . . 1 . 5 . . 1 Load Schematic 5 | . . . . 1 . 3 . . 1 Build 2 | . . . . . . 2 . . . Repair Station Hacks . | . . . . . . . . . . Recycling Unit Hacks . | . . . . . . . . . . Scanalyzer 4 | . . 2 . 2 . . . . . Insert Component 2 | . . 1 . 1 . . . . . Analyze 2 | . . 1 . 1 . . . . . Garrison Access Hacks . | . . . . . . . . . . Unauthorized Hacks 23 | . 3 4 3 3 3 . 2 5 . Terminals 23 | . 3 4 3 3 3 . 2 5 . Track 4 | . 1 1 . . . . . 2 . Assimilate 1 | . . . . . 1 . . . . Botnet 13 | . 2 2 2 2 2 . 1 2 . Operators 5 | . . 1 1 1 . . 1 1 . Fabricators . | . . . . . . . . . . Repair Stations . | . . . . . . . . . . Recycling Units . | . . . . . . . . . . Scanalyzers . | . . . . . . . . . . Garrison Access . | . . . . . . . . . . Data Cores Recovered 1 | . . . . . . . 1 . . Used 1 | . . . . . . . 1 . . Hacking Detections 37 | . 3 5 4 5 5 4 1 7 3 Full Trace Events 5 | . 1 1 1 . 1 1 . . . Feedback Events . | . . . . . . . . . . Feedback Blocked . | . . . . . . . . . . Robot Schematics Acquired . | . . . . . . . . . . Robots Built . | . . . . . . . . . . Matter . | . . . . . . . . . . Time . | . . . . . . . . . . Total Robot Build Rating . | . . . . . . . . . . Part Schematics Acquired 6 | . . 2 2 1 . . . 1 . Parts Built 3 | . . . . . . 3 . . . Matter 270 | . . . . . . 270 . . . Time 135 | . . . . . . 135 . . . Total Part Build Rating 9 | . . . . . . 9 . . . Parts Repaired . | . . . . . . . . . . Time . | . . . . . . . . . . Parts Recycled . | . . . . . . . . . . Recycled Matter . | . . . . . . . . . . Retrieved Matter . | . . . . . . . . . . Retrieved Components . | . . . . . . . . . . Parts Scanalyzed 2 | . . 1 . 1 . . . . . Part Schematics Acquired 2 | . . 1 . 1 . . . . . Parts Damaged . | . . . . . . . . . . Bothacking | -11 -10 -9 -8 -7 -6 -5 -4 -3 -2 ------------ Run | Scr Mat Mat Mat Fac Fac Fac Fac Res Res Used RIF Installer . | . . . . . . . . . . Robots Hacked . | . . . . . . . . . . Non-combat . | . . . . . . . . . . Combat . | . . . . . . . . . . Robot Hacks Applied . | . . . . . . . . . . Relay Couplers Released 2 | . . . . . . . . 2 . Machine Destruction 2 | . . . . . . . . 2 . Robots Rewired . | . . . . . . . . . . Allies Hacked . | . . . . . . . . . . Hacks Repelled . | . . . . . . . . . . Allies | -11 -10 -9 -8 -7 -6 -5 -4 -3 -2 -------- Run | Scr Mat Mat Mat Fac Fac Fac Fac Res Res Total Allies 1 | . . . . . 1 . . . . Largest Group 1 | . . . . . 1 . . . . Highest-Rated Group 10 | . . . . . 10 . . . . Highest-Rated Ally 10 | . . . . . 10 . . . . Total Orders . | . . . . . . . . . . Ally Attacks . | . . . . . . . . . . Total Damage . | . . . . . . . . . . Kills . | . . . . . . . . . . Allies Corrupted . | . . . . . . . . . . Allies Melted . | . . . . . . . . . . Intel | -11 -10 -9 -8 -7 -6 -5 -4 -3 -2 ------- Run | Scr Mat Mat Mat Fac Fac Fac Fac Res Res Robot Analysis Total 4 | . . 2 . 2 . . . . . Derelict Logs Recovered . | . . . . . . . . . . Drone Launches . | . . . . . . . . . . Drone Recoveries . | . . . . . . . . . . Exploration | -11 -10 -9 -8 -7 -6 -5 -4 -3 -2 ------------- Run | Scr Mat Mat Mat Fac Fac Fac Fac Res Res Turns Passed 9215 | 57 345 745 428 989 771 1116 729 3432 603 Spaces Moved 6002 | 37 259 474 279 597 582 763 464 2172 375 Core 8 | 8 . . . . . . . . . Treads 229 | . . 12 6 27 . 1 4 167 12 Legs . | . . . . . . . . . . Wheels 5765 | 29 259 462 273 570 582 762 460 2005 363 Hover . | . . . . . . . . . . Flight . | . . . . . . . . . . Fastest Speed 50 | 50 90 90 110 100 110 103 106 100 93 Average Speed 110 | 81 90 98 112 113 110 111 108 113 110 Slowest Speed 270 | 90 90 180 230 210 140 230 270 190 165 Overloaded Moves . | . . . . . . . . . . Propulsion Burnouts . | . . . . . . . . . . Robots Hopped . | . . . . . . . . . . Cave-ins Triggered . | . . . . . . . . . . Exploration Rate (%) 28 | 4 50 48 32 20 16 21 17 58 15 Regions Visited 9 Branch Regions . Pre-discovered Areas . | . . . . . . . . . . Known Exits Taken 7 | . 1 1 . 1 1 1 1 1 . Unknown Exits Taken 2 | 1 . . 1 . . . . . . Scrap Searched . | . . . . . . . . . . Spaces Dug 22 | . . . . 1 1 6 3 11 . Terrain Destroyed 204 | . 4 31 41 1 2 27 42 45 11 Melee 11 | . . . . . . . . 11 . Projectile 100 | . . . . 1 2 27 25 34 11 AOE 93 | . 4 31 41 . . . 17 . . Terrain Rammed . | . . . . . . . . . . Walls Destroyed . | . . . . . . . . . . Machines Disabled . | . . . . . . . . . . Actions | -11 -10 -9 -8 -7 -6 -5 -4 -3 -2 --------- Run | Scr Mat Mat Mat Fac Fac Fac Fac Res Res Total 7506 | 54 311 639 349 768 666 911 584 2739 485 Wait 254 | . 10 20 11 25 10 34 15 123 6 Move 5993 | 36 258 473 278 596 581 762 463 2171 375 Hop . | . . . . . . . . . . Pick Up 185 | 8 6 30 10 20 11 14 13 55 18 Fast Attach 66 | 2 3 7 3 6 7 4 4 24 6 Attach 114 | 4 2 6 3 7 7 7 10 43 25 Detach 10 | . 1 2 . . 2 1 1 3 . Swap 118 | . 1 12 6 14 5 6 10 61 3 Drop 154 | . 1 29 10 22 14 11 9 53 5 Fire 588 | 4 29 60 28 78 29 72 59 186 43 Melee 11 | . . . . . . . . 11 . Ram 4 | . . . . . . . . . 4 Kick . | . . . . . . . . . . Crush 9 | . . . . . . . . 9 . Escape Stasis . | . . . . . . . . . . Rewire . | . . . . . . . . . . Trap . | . . . . . . . . . . Miscellaneous . | . . . . . . . . . . Route ------- -11/Scrapyard -10/Materials -9/Materials (discovered 4 exits: *Mat x3 / [*Min]) -8/Materials -7/Factory (discovered 4 exits: *Fac x4) -6/Factory (discovered 5 exits: *Fac x4 / *Low) -5/Factory (discovered 2 exits: *Fac / [*Ext]) -4/Factory -3/Research (discovered 3 exits: *Res / *Tes x2) -2/Research (discovered 3 exits: Acc x3) History --------- Turn | Location | Event 9 | -11/Scrapyard | Discovered new exit (range 16) 58 | -11/Scrapyard | Entered Materials 219 | -10/Materials | Discovered new exit (range 3) 248 | -10/Materials | Identified exit to Materials 318 | -10/Materials | Build established: Mutant 403 | -10/Materials | Entered another Materials area 403 | -9/Materials | Evolved 2 slots: Propulsion x1, Utility x1 857 | -9/Materials | Discovered new exit (range 15) 1069 | -9/Materials | Identified exit to Materials 1148 | -9/Materials | Entered another Materials area 1148 | -8/Materials | Evolved 2 slots: Utility x2 1369 | -8/Materials | Central database locked down 1561 | -8/Materials | Discovered new exit (range 16) 1576 | -8/Materials | Entered Factory 1576 | -7/Factory | Evolved 2 slots: Utility x2 2018 | -7/Factory | Build established: Skirmisher 2317 | -7/Factory | Identified exit to Factory 2565 | -7/Factory | Entered another Factory area 2565 | -6/Factory | Evolved 2 slots: Propulsion x1, Utility x1 2852 | -6/Factory | Spotted B-75 Beast 3107 | -6/Factory | Garrison activated, responded to threat 3135 | -6/Factory | Build established: Hauler-Skirmisher 3150 | -6/Factory | Discovered new exit (range 13) 3165 | -6/Factory | Identified exit to Lower Caves 3184 | -6/Factory | Identified exit to Factory 3336 | -6/Factory | Entered another Factory area 3336 | -5/Factory | Evolved 2 slots: Utility x1, Weapon x1 3383 | -5/Factory | Discovered new exit (range 19) 3662 | -5/Factory | Fabricated Arm. Huge Wheel? 3883 | -5/Factory | Fabricated Lrg. Storage Unit (x1) 4186 | -5/Factory | Destroyed 7 combat bots 4204 | -5/Factory | Spotted B-75 Beast 4306 | -5/Factory | Discovered new exit (range 21) 4341 | -5/Factory | Identified exit to Factory 4452 | -5/Factory | Entered another Factory area 4452 | -4/Factory | Evolved 2 slots: Power x1, Utility x1 5076 | -4/Factory | Lost 4 parts (1u3w) 5078 | -4/Factory | Destroyed 7 combat bots 5146 | -4/Factory | Discovered new exit (range 22) 5170 | -4/Factory | Identified exit to Research 5181 | -4/Factory | Entered Research 5181 | -3/Research | Evolved 2 slots: Propulsion x1, Utility x1 5301 | -3/Research | Spotted B-86 Titan 5318 | -3/Research | Build established: Scavenger-Skirmisher 6084 | -3/Research | Garrison activated, responded to threat 6342 | -3/Research | Assembled infested ambush trap array 6423 | -3/Research | Destroyed 11 combat bots 6454 | -3/Research | Lost 9 parts (3n3u3w) 6948 | -3/Research | Build established: Hauler-Skirmisher 7293 | -3/Research | Discovered new exit (range 8) 7300 | -3/Research | Identified exit to Testing 7525 | -3/Research | System corruption reached 10% 7804 | -3/Research | Lost 4 parts (1n3w) 7839 | -3/Research | Found Prototype Device 7935 | -3/Research | Identified Exp. Thermal Defense Suite 8084 | -3/Research | Found Gamma Bomb Array 8098 | -3/Research | Spotted B-86 Titan 8215 | -3/Research | System corruption reached 30% 8242 | -3/Research | Destroyed 7 combat bots 8242 | -3/Research | Lost 8 parts (2n3u3w) 8284 | -3/Research | Found Prototype Hackware 8313 | -3/Research | Identified Exp. System Shield 8579 | -3/Research | Discovered exit to Testing (range 7) 8582 | -3/Research | Discovered new exit (range 6) 8586 | -3/Research | Identified exit to Research 8610 | -3/Research | Lost 8 parts (1p3n1u3w) 8613 | -3/Research | Entered another Research area 8613 | -2/Research | Evolved 2 slots: Utility x2 8906 | -2/Research | Build established: Hacker-Skirmisher 8915 | -2/Research | Identified exit to Access 8928 | -2/Research | Garrison activated, responded to threat 9008 | -2/Research | Destroyed 11 combat bots 9058 | -2/Research | Lost 16 parts (2p4n5u5w) 9115 | -2/Research | Spotted B-90 Cyclops 9131 | -2/Research | Core integrity fell below 50% 9152 | -2/Research | System corruption reached 10% 9179 | -2/Research | Core integrity fell below 20% 9216 | -2/Research | Destroyed by H-88 Terminator with KE Penetrator Last Messages --------------- 09195_ K-01 Serf collects debris. 09197_ Slug penetrates Wall. 09199_ Penetrated by Slug. 09199_ Slug penetrates Wall. 09203_ Acquired Enh. Nova Cannon. 09204_ Slug penetrates Wall. 09205_ Acquired Enh. Nova Cannon. 09210_ Exp. System Shield destroyed. 09210_ Penetrated by Slug. 09210_ Critical hit. 09210_ Arm. Huge Wheel destroyed. 09210_ Penetrated by Slug. 09211_ K-01 Serf collects debris. 09213_ Penetrated by Slug. 09213_ Slug penetrates Wall. 09214_ Penetrated by Slug. 09214_ Slammed into H-88 Terminator. 09214_ Destabilizing: Core damaged (-43). 09215_ System corrupted: Heat flow error (+232). 09215_ K-01 Serf collects debris. Map ----- +----------------------------------------------------+ | ?????????????????????????????????????????????????? | | ?????????????????????????? ????????????????????? | | ?????????????????????????? ????????????????????? | | ?????????????????????????? #???????????????????? | | ?????????????????????????# #???????????????????? | | ?????????????????????????# #???????????????????? | | ?????????????????????????# #???????????????????? | | ?????????????????????????# #???????????????????? | | ?????????????????????????# #???????????????????? | | ?????????????????????????# #???????????????????? | | ?????????????????????????# #???????????????????? | | ?????????????????????????# #???????????????????? | | ?????????????????????????# #???????????????????? | | ?????????????????????????# #???????????????????? | | ?????????????????????????# #???????????????????# | | ?????????????????????????# #???????????????????# | | ?????????????????????????# #???????????????????# | | ?????????????????????????# #???????????????????# | | ?????????????????????????# #???????????????????# | | ?????????????????????????# #???????????????????# | | ????????????????????###??# w#???????????????????? | | ??????????????????### #### ##################### | | ??????????????????# # =k! h!%=*|= ^^ | | ??????????????????# ==Y # !!* =%!!k=k%! | | ??????????????????# ==g # !%! h ![![= ! | | ??????????????????# = p @ ##+######+########## | | ??????????????????# hh# # ??# ???????? | | ??????????????????# # # ?# ?????? | | ??????????????????######## # | # #????? | | ????????????????????????? # # #????? | | ???????????????????????? # # #????? | | ??????????????????????? # # #????? | | ?????????????????????? #################### | | ????????????????????? """" #????????????# | | ???????????????????? """" #????????????# | | ??????????????????? """" #????????????# * "" | | ??????????????????# """" #????????????# "" | | ?????????????????? #????????????# "" | | ????????????????? ? +????????????# | | ????????????????" ? ??? #????????????# | | ????????????????????????? #????????????# | | ?????????????????????????# ##????????????####### | | ?????????????????????????? #???????????????????? | | ?????????????????????????? #???????????????????? | | ?????????????????????????? +???????????????????? | | ??????????????????????????? #???????????????????? | | ??????????????????????????? ????????????????????? | | ???????????????????????????? ????????????????????? | | ?????????????????????????????????????????????????? | | ?????????????????????????????????????????????????? | +----------------------------------------------------+ Best States ------------- Heat Dissipation 136 Coolant Potential 100 Energy Generation 41 Energy Capacity 290 Matter Stores 300 Matter Capacity 300 Sight Range 22 Robot Scan Range 16 Terrain Scan Density 10 Jamming Range 12 Power Amplification 40 Armor Coverage 1200 Resistance: KI 20 Resistance: TH 20 Resistance: EX 20 Resistance: EM 20 Resistance: I 20 Resistance: S 20 Resistance: P 20 Propulsion Shielding 33 Weapon Cycling 15 Evasion (%) 50 Recoil Reduction 2 Particle Charging 25 Offensive Hacking 10 Defensive Hacking 28 Item Schematics ----------------- Lrg. Storage Unit | -9/Materials | Scanalyzed Hcp. Storage Unit | -9/Materials | Hacked Imp. Weapon Shielding | -8/Materials | Hacked Imp. Utility Shielding | -8/Materials | Hacked Arm. Huge Wheel | -7/Factory | Scanalyzed Enh. Nova Cannon | -3/Research | Hacked Robot Schematics ------------------ None Fabricated ------------ Arm. Huge Wheel | x2 | -5/Factory Lrg. Storage Unit | x1 | -5/Factory Alien Tech Used ----------------- None Achievements -------------- None Challenges ------------ None Game ------ Seed SupersonicAssaultExtractor Manual? 0 Play Time 03:51:35 Cumulative 141.8 hours Start 2021.08.17 @ 18:17:50 End 2021.08.17 @ 23:10:48 Sessions 5 Manual Loads 0 Difficulty Adventurer Special Mode None Game No. 56 Rogue 4 Adventurer 50 Explorer 2 Win Type - Total 4 Types 4/0/0/0/0/0/0/0/0 Lore% 8 Gallery% 58 Achievement% 34 Wizard Run 0 Options --------- ASCII 0 Keyboard 1 Movement Numpad Keybinds 0 Fullscreen 1 Font 36/TerminusFine Map View 76x50 Tactical HUD 1 Map Filters NONE Filters NONE Steam 1 RUN: ef066bd0-7cc6-4b61-a23d-afb8f054c0db